Cogmind - Beta 12 @@@ ROGUE MODE // 2023.12.23 @ 13:26:03 Player: Ischenous Result: Destroyed by G-47 Trooper with Particle Gun Performance ------------- Evolutions (2) 1000 Regions Visited (5) 1000 Robots Destroyed (17) 85 Value Destroyed (648) 648 Prototype IDs (5) 100 Alien Tech Used (0) 0 Bonus (300) 300 TOTAL SCORE: 3133 Bonus ------- Follower Combat Kills 300 Cogmind --------- Core Integrity 0/550 Matter 278/300 Energy 77/100 System Corruption 0% Temperature Warm (151) Movement Core (50) Location -8/Materials Parts ------- > --- POWER (2) -------- (None) > --- PROPULSION (2) --- (None) > --- UTILITY (5) ------ Visual Processing Unit > --- WEAPON (2) ------- (None) > --- INVENTORY (5) ---- Improved Sensor Array Signal Interpreter Reaction Control System Peak State ------------ > --- POWER ------------ Light Deuterium Engine Light Nuclear Core > --- PROPULSION ------- Aluminum Leg Aluminum Leg > --- UTILITY ---------- Heat Sink Small Storage Unit Visual Processing Unit Targeting Computer Light Armor Plating > --- WEAPON ----------- Precision Beam Rifle Improved Light Cannon > --- INVENTORY -------- Titanium Leg Improved Sensor Array Signal Interpreter Shield Generator Beam Cannon Minigun Light Cannon Datajack [Rating: 21] Favorites ----------- Power Light Nuclear Core Engine Ion Engine Power Core Light Nuclear Core Propulsion Aluminum Leg Leg Aluminum Leg Utility Small Storage Unit Device Heat Sink Storage Small Storage Unit Processor Targeting Computer Protection Light Armor Plating Weapon Precision Beam Rifle Energy Gun Precision Beam Rifle Ballistic Gun Minigun Ballistic Cannon Light Cannon Special Weapon Plasma Cutter Build | -11 -10 -10 -9 -9 -8 ------- Run | Jun Mat Min Mat Sto Mat Slots Evolved 4 | . . . 2 . 2 Power 1 | . . . . . 1 Propulsion . | . . . . . . Utility 3 | . . . 2 . 1 Weapon . | . . . . . . Parts Attached 36 | 6 1 1 5 12 11 Power 5 | 1 . . 1 2 1 Engine 2 | 1 . . . . 1 Core 3 | . . . 1 2 . Reactor . | . . . . . . Propulsion 8 | 2 . . 1 4 1 Treads . | . . . . . . Leg 8 | 2 . . 1 4 1 Wheel . | . . . . . . Hover . | . . . . . . Flight . | . . . . . . Utility 9 | 1 1 . 1 2 4 Device 4 | . 1 . . 1 2 Storage 1 | 1 . . . . . Processor 3 | . . . 1 1 1 Hackware . | . . . . . . Protection 1 | . . . . . 1 Artifact . | . . . . . . Weapon 14 | 2 . 1 2 4 5 Energy Gun 8 | 2 . 1 2 2 1 Energy Cannon . | . . . . . . Ballistic Gun 1 | . . . . . 1 Ballistic Cannon 3 | . . . . 2 1 Launcher . | . . . . . . Special Weapon 2 | . . . . . 2 Impact Weapon . | . . . . . . Slashing Weapon . | . . . . . . Piercing Weapon . | . . . . . . Special Melee Weapon . | . . . . . . Unidentified Prototypes 1 | . . . 1 . . Parts Lost 22 | . 1 . . 5 16 Power 3 | . . . . 1 2 Propulsion 5 | . . . . 2 3 Utility 6 | . . . . 1 5 Weapon 8 | . 1 . . 1 6 Highest Loss Streak 10 | . 1 . . 4 10 To Critical Strikes . | . . . . . . Average Slot Usage (%) 87 | . 90 94 88 89 82 Engine 5 | . 14 14 3 . 4 Core 5 | . . . 8 7 7 Leg 20 | . 28 28 22 18 16 Device 8 | . 5 14 11 10 7 Storage 10 | . 14 14 11 11 7 Processor 13 | . . . 11 20 17 Protection 1 | . . . . . 5 Energy Gun 16 | . 28 22 22 13 8 Ballistic Cannon 4 | . . . . 8 7 Naked Turns . | . . . . . . Heaviest Build 25 | 13 14 14 16 16 25 Greatest Support 27 | 20 20 20 20 20 27 Greatest Overweight (x) 3 | . . . . 3 1 Average Overweight (x) . | . . . . . . Largest Inventory Capacity 8 | 8 8 8 8 8 8 Average Capacity 7 | 7 8 8 8 8 7 Most Carried 8 | 4 6 8 8 8 8 Average Carried 5 | 1 4 6 7 6 6 Final Capacity 8 | 8 8 8 8 8 5 Final Carried 8 | 2 6 7 8 8 3 Class Distribution -------------------- 100% | Mutant Dominant Class ---------------- Mutant | -10/Materials Mutant | -10/Mines Mutant | -9/Materials Mutant | -9/Storage Mutant | -8/Materials Resources | -11 -10 -10 -9 -9 -8 ----------- Run | Jun Mat Min Mat Sto Mat Matter Collected 587 | 113 28 13 27 324 82 Remotely . | . . . . . . Salvage Created 703 | . 153 . 14 388 148 Parts 45 | . 10 . 2 27 6 Haulers Intercepted . | . . . . . . Recyclers Shooed 1 | . 1 . . . . Parts Field Recycled . | . . . . . . Retrieved Matter . | . . . . . . Parts Self-Destructed . | . . . . . . Prevented . | . . . . . . Kills | -11 -10 -10 -9 -9 -8 ------- Run | Jun Mat Min Mat Sto Mat Combat Hostiles Destroyed 15 | . 4 . . 8 3 Guns 8 | . 1 . . 5 2 Cannons 4 | . . . . 3 1 AOE 3 | . 3 . . . . Classes Destroyed 4 | . 1 . 1 2 . Operator 1 | . . . 1 . . Watcher 1 | . . . . 1 . Grunt 11 | . 4 . . 5 2 Sentry 4 | . . . . 3 1 Best Kill Streak 5 | . 2 . 1 5 1 Combat Bots Only 5 | . 2 . . 5 1 Max Kills in Single Turn 2 | . 2 . 1 1 1 Gunslinging . | . . . . . . Exploded 2 | . 2 . . . . Melee . | . . . . . . Uniques/NPCs Destroyed . | . . . . . . Combat | -11 -10 -10 -9 -9 -8 -------- Run | Jun Mat Min Mat Sto Mat Damage Taken 2642 | . 267 . . 676 1699 Core 822 | . 85 . . 176 561 Absorbed by Shields 13 | . . . . . 13 Core Remaining (%) 74 | 100 . 66 . 56 . Volleys Fired 87 | 3 16 . 2 40 26 Largest 2 | 2 2 . 2 2 2 Hottest 106 | 80 80 . 101 106 100 Shots Fired 159 | 6 32 . 4 76 41 Gun 123 | 6 32 . 4 55 26 Cannon 35 | . . . . 21 14 Launcher . | . . . . . . Special 1 | . . . . . 1 Kinetic 42 | . . . . 21 21 Thermal 81 | 3 16 . 2 40 20 Explosive . | . . . . . . Electromagnetic 36 | 3 16 . 2 15 . Robot Hit Streak 20 | 2 8 . 3 20 16 Robot Miss Streak 4 | 3 4 . . 1 2 Penetration Max . | . . . . . . Secondary Targets 1 | . . . . 1 . Max Gunslinging Chain 1 | . . . . 1 . Shots Hit Robots 101 | 3 20 . 3 43 32 Core Hits 34 | . 8 . 2 14 10 Critical Kills . | . . . . . . Critical Parts Destroyed . | . . . . . . Critical Strikes 5 | . . . 1 2 2 Burn 5 | . . . 1 2 2 Melee Attacks . | . . . . . . Impact . | . . . . . . Slashing . | . . . . . . Piercing . | . . . . . . Sneak Attacks . | . . . . . . Combat Hostiles . | . . . . . . Follow-up Attacks . | . . . . . . Damage Inflicted 2041 | 36 494 . 100 753 658 Guns 1318 | 36 258 . 43 561 420 Cannons 419 | . . . . 190 229 Explosions 293 | . 236 . 57 . . Melee . | . . . . . . Ramming 11 | . . . . 2 9 Kinetic 516 | . . . . 190 326 Thermal 1202 | 10 362 . 73 434 323 Explosive . | . . . . . . Electromagnetic 312 | 26 132 . 27 127 . Impact . | . . . . . . Slashing . | . . . . . . Piercing . | . . . . . . Highest Corruption . | . . . . . . Average Corruption . | . . . . . . Corruption Purged . | . . . . . . Corruption Blocked . | . . . . . . Overload Shots . | . . . . . . Overflow Damage . | . . . . . . Projectiles . | . . . . . . Explosions . | . . . . . . Melee . | . . . . . . Knockbacks 3 | . . . . . 3 Impact . | . . . . . . Kinetic 3 | . . . . . 3 Secondary . | . . . . . . Self-Inflicted Damage 3 | . . . . . 3 Shots . | . . . . . . Rammed 1 | . . . . . 1 Targets Rammed 5 | . . . . 1 4 Kicked 4 | . . . . 1 3 Crushed . | . . . . . . Highest Temperature 511 | 54 318 . 6 342 511 Average Temperature 129 | 29 174 . 4 93 169 Received Heat Transfer 1500 | . 147 . . 282 1071 Effects 11 | . . . . 4 7 Shutdowns 1 | . . . . . 1 Energy Bleed 2 | . . . . 2 . Interference 6 | . . . . 1 5 Damage (minor) 2 | . . . . 1 1 Siege Activations . | . . . . . . Robots Corrupted . | . . . . . . Combat Hostiles . | . . . . . . Parts Fried . | . . . . . . Impact Corruptions . | . . . . . . Robots Melted . | . . . . . . Combat Hostiles . | . . . . . . Parts Melted 1 | . . . . . 1 Heat Transferred 2610 | 25 500 . 161 1073 851 Parts Sabotaged . | . . . . . . Parts Stolen . | . . . . . . Parts Stripped . | . . . . . . Power Chain Reactions 4 | . 3 . 1 . . Missiles Intercepted . | . . . . . . Alert | -11 -10 -10 -9 -9 -8 ------- Run | Jun Mat Min Mat Sto Mat Peak Influence 325 | . 125 13 176 325 278 Initial 121 | . . 13 4 74 121 Average 126 | . 37 13 61 210 166 Maximum Alert Level 1 | . . . . 1 1 Low Security (%) 69 | 100 100 100 100 42 55 Level 1 30 | . . . . 57 44 Level 2 . | . . . . . . Level 3 . | . . . . . . Level 4 . | . . . . . . Level 5 . | . . . . . . High Security . | . . . . . . Max Security . | . . . . . . Squads Dispatched 8 | . 2 . 1 4 1 Investigation 2 | . 1 . . 1 . Extermination . | . . . . . . Reinforcement 4 | . 1 . 1 1 1 Assault 2 | . . . . 2 . Garrison . | . . . . . . Intercept . | . . . . . . Searches Triggered . | . . . . . . Construction Impeded . | . . . . . . Haulers Reinforced . | . . . . . . Active Scanning Responses . | . . . . . . Cargo Convoy Interrupts . | . . . . . . Stealth | -11 -10 -10 -9 -9 -8 --------- Run | Jun Mat Min Mat Sto Mat Distress Signals 4 | . 2 . 1 1 . Communications Jammed . | . . . . . . Distress Signals . | . . . . . . Times Spotted 60 | . 16 . 6 21 17 Peak Tracking Total 9 | . 8 . 3 7 9 Tactical Retreats 9 | . 1 . . 7 1 Traps | -11 -10 -10 -9 -9 -8 ------- Run | Jun Mat Min Mat Sto Mat Traps Triggered 3 | . 1 . . 2 . Indirectly . | . . . . . . Trap Hack Attempts . | . . . . . . Triggered . | . . . . . . Disarmed . | . . . . . . Reprogrammed . | . . . . . . Reused . | . . . . . . Traps Extracted . | . . . . . . Installed . | . . . . . . Triggered . | . . . . . . Machines | -11 -10 -10 -9 -9 -8 ---------- Run | Jun Mat Min Mat Sto Mat Machines Disabled 1 | . . . . 1 . Max in Single Turn 1 | . . . . 1 . Machines Repaired . | . . . . . . Machines Sabotaged . | . . . . . . Overloaded Fab Kills . | . . . . . . Hacking | -11 -10 -10 -9 -9 -8 --------- Run | Jun Mat Min Mat Sto Mat Machines Accessed 5 | . 1 . 1 2 1 Terminals 5 | . 1 . 1 2 1 Fabricators . | . . . . . . Repair Stations . | . . . . . . Recycling Units . | . . . . . . Scanalyzers . | . . . . . . Garrison Access . | . . . . . . Total Hacks 21 | . 3 . 7 7 4 Successful 10 | . 2 . 3 2 3 Failed 11 | . 1 . 4 5 1 Catastrophic . | . . . . . . Database Lockouts . | . . . . . . Manual . | . . . . . . Terminals 21 | . 3 . 7 7 4 Fabricators . | . . . . . . Repair Stations . | . . . . . . Recycling Units . | . . . . . . Scanalyzers . | . . . . . . Garrison Access . | . . . . . . Terminal Hacks 10 | . 2 . 3 2 3 Prototype ID Bank 2 | . . . . 1 1 Branch Access Points 1 | . . . 1 . . Alert Level 2 | . 1 . . . 1 Locate Traps 1 | . . . . 1 . Dispatch Records 1 | . . . . . 1 Maintenance Status 1 | . . . 1 . . Recall Investigation 1 | . 1 . . . . Zone Layout 1 | . . . 1 . . Fabricator Hacks . | . . . . . . Repair Station Hacks . | . . . . . . Recycling Unit Hacks . | . . . . . . Scanalyzer . | . . . . . . Garrison Access Hacks . | . . . . . . Unauthorized Hacks . | . . . . . . Terminals . | . . . . . . Fabricators . | . . . . . . Repair Stations . | . . . . . . Recycling Units . | . . . . . . Scanalyzers . | . . . . . . Garrison Access . | . . . . . . Data Cores Recovered 1 | . . . 1 . . Used 1 | . . . 1 . . Hacking Detections 5 | . 1 . 1 2 1 Full Trace Events . | . . . . . . Feedback Events . | . . . . . . Feedback Blocked . | . . . . . . Robot Schematics Acquired . | . . . . . . Robots Built . | . . . . . . Authchips . | . . . . . . Time . | . . . . . . Total Robot Build Rating . | . . . . . . Part Schematics Acquired . | . . . . . . Parts Built . | . . . . . . Authchips . | . . . . . . Time . | . . . . . . Total Part Build Rating . | . . . . . . Parts Repaired . | . . . . . . Time . | . . . . . . Parts Recycled . | . . . . . . Recycled Matter . | . . . . . . Retrieved Matter . | . . . . . . Retrieved Components . | . . . . . . Parts Scanalyzed . | . . . . . . Part Schematics Acquired . | . . . . . . Parts Damaged . | . . . . . . Bothacking | -11 -10 -10 -9 -9 -8 ------------ Run | Jun Mat Min Mat Sto Mat Used RIF Installer . | . . . . . . Robots Hacked . | . . . . . . Non-combat . | . . . . . . Combat . | . . . . . . Robot Hacks Applied . | . . . . . . Relay Couplers Released . | . . . . . . Fabnet Peak Effective % . | . . . . . . Robots Rewired . | . . . . . . Allies Hacked . | . . . . . . Hacks Repelled . | . . . . . . Allies | -11 -10 -10 -9 -9 -8 -------- Run | Jun Mat Min Mat Sto Mat Total Allies 5 | . . 3 . 2 . Largest Group 3 | . . 3 3 3 2 Highest-Rated Group 62 | . . 40 40 62 62 Highest-Rated Ally 31 | . . 16 16 31 31 Total Orders . | . . . . . . Ally Attacks 79 | . . . 30 27 22 Total Damage 889 | . . . 339 323 227 Kills 13 | . . . 4 6 3 Allies Corrupted . | . . . . . . Allies Melted . | . . . . . . Intel | -11 -10 -10 -9 -9 -8 ------- Run | Jun Mat Min Mat Sto Mat Robot Analysis Total . | . . . . . . Derelict Logs Recovered . | . . . . . . Drone Launches . | . . . . . . Drone Recoveries . | . . . . . . Exploration | -11 -10 -10 -9 -9 -8 ------------- Run | Jun Mat Min Mat Sto Mat Turns Passed 2054 | 113 467 54 223 672 525 Spaces Moved 1180 | 86 231 43 167 380 273 Core 21 | 18 . . . 2 1 Treads . | . . . . . . Legs 1159 | 68 231 43 167 378 272 Wheels . | . . . . . . Hover . | . . . . . . Flight . | . . . . . . Fastest Speed 50 | 50 120 120 120 120 50 Average Speed 131 | 105 120 120 120 137 150 Slowest Speed 200 | 120 120 120 120 200 190 Overloaded Moves . | . . . . . . Propulsion Burnouts . | . . . . . . Robots Hopped . | . . . . . . Cave-ins Triggered . | . . . . . . Exploration Rate (%) 20 | 4 37 8 16 44 16 Regions Visited 5 Branch Regions 2 Pre-discovered Areas . | . . . . . . Known Exits Taken 1 | . . . 1 . . Unknown Exits Taken 4 | 1 1 1 . 1 . Scrap Searched 1 | . . 1 . . . Spaces Dug . | . . . . . . Terrain Destroyed 13 | . 8 . 5 . . Melee . | . . . . . . Projectile . | . . . . . . AOE 13 | . 8 . 5 . . Terrain Rammed . | . . . . . . Walls Destroyed . | . . . . . . Machines Disabled . | . . . . . . Actions | -11 -10 -10 -9 -9 -8 --------- Run | Jun Mat Min Mat Sto Mat Total 1529 | 102 389 45 188 454 351 Wait 156 | . 137 . 1 7 11 Move 1175 | 85 230 42 166 379 273 Hop . | . . . . . . Pick Up 51 | 8 5 2 8 12 16 Fast Attach . | . . . . . . Attach 27 | 6 1 1 1 9 9 Detach . | . . . . . . Swap 9 | . . . 4 3 2 Drop 19 | . . . 6 3 10 Fire 87 | 3 16 . 2 40 26 Melee . | . . . . . . Ram 1 | . . . . . 1 Kick 4 | . . . . 1 3 Crush . | . . . . . . Escape Stasis . | . . . . . . Rewire . | . . . . . . Trap . | . . . . . . Miscellaneous . | . . . . . . Route ------- -11/Junkyard -10/Materials -10/Mines -9/Materials (discovered 4 exits: Min x2 / *Sto x2) -9/Storage -8/Materials History --------- Turn | Location | Event 4 | -11/Junkyard | Discovered new exit (range 15) 114 | -11/Junkyard | Entered Materials 305 | -10/Materials | Build established: Mutant 573 | -10/Materials | Discovered new exit (range 7) 581 | -10/Materials | Entered Mines 586 | -10/Mines | Assisted by bots powering up and referring to "LRC-V3" 608 | -10/Mines | Discovered new exit (range 15) 635 | -10/Mines | Entered Materials 635 | -9/Materials | Accompanied by 3 allies 635 | -9/Materials | Evolved 2 slots: Utility x2 733 | -9/Materials | Identified exit to Mines 733 | -9/Materials | Identified exit to Storage 858 | -9/Materials | Entered Storage 858 | -9/Storage | Accompanied by 3 allies 1102 | -9/Storage | Lost 4 parts (1p1n1u1w) 1466 | -9/Storage | Discovered new exit (range 18) 1486 | -9/Storage | Met a pair of Derelict thieves 1530 | -9/Storage | Entered Materials 1530 | -8/Materials | Accompanied by 2 allies 1530 | -8/Materials | Evolved 2 slots: Power x1, Utility x1 2001 | -8/Materials | Lost 10 parts (2p2n4u2w) 2043 | -8/Materials | Core integrity fell below 50% 2051 | -8/Materials | Core integrity fell below 20% 2055 | -8/Materials | Destroyed by G-47 Trooper with Particle Gun Last Messages --------------- 01970_ Shield Generator destroyed. 01998_ Kicked W-25 Informer. 02004_ Critical hit (Burn: +37). 02009_ Kicked A-02 Transporter. 02023_ Acquired Plasma Cutter. 02029_ Plasma Cutter destroyed. 02034_ Acquired Plasma Cutter. 02035_ Titanium Leg destroyed. 02036_ Targeting Computer destroyed. 02038_ Pulse Rifle destroyed. 02039_ Plasma Cutter destroyed. 02040_ Critical hit (Burn: +37). 02041_ Y-45 Defender destroyed. 02043_ Critical hit (Burn: +37). 02049_ M-13 Machinist repairs G-47 Trooper. 02050_ Critical hit (Burn: +37). 02051_ G-47 Trooper suffers critical hit (Burn). 02052_ Minigun destroyed. 02054_ Slammed into G-50 Soldier. 02055_ Acquired 49 matter. Map ----- +----------------------------------------------------+ | ?????????????????????????????????????????????????? | | ?????????????????????????????????????????????????? | | ?????????????????????????????????????????????????? | | ?????????????????????????????????????????????????? | | ?????????????????????? ?????????????? ???????????? | | ?????????????????????? ?????????????? ???????????? | | ?????????????????????? ?????????????# ???????????? | | ??????????????????????T?????????????# #??????????? | | ?????????????????????? ?????????????# #????????? ? | | ?????????????????????? ?????????????# #???????? ? | | ?????????????????????# #????????????# ##?????? ? | | ?????????????????????# #????????????# +????? ? | | ?????????????????????# #????????????# #?? ? ? | | ?????????????????????# #???????????## ##/## ? | | ?????####????????????#%#???????????# ?? | | ??? / ???????????# #???????????# ??? | | ??????# ########### ####????????+ ?????? | | ??????# %+ #?######## #???????? | | ???????????# #?# ## #???????? | | ??????# # ### #???????? | | ??????#] +% #???????? | | ??????# ##### #####/### % #???????? | | ??? ???????????# #??# m # ###### #??###### | | ??? ???????####+##+#### r ### ###????# #??# """ | | ???? ####+### ##gggg#?# ##?????# #??# "T" | | ????? / """" ##g@g #?# # #??## #### | | ?????? # """" ## !! #?# # ### # | | ??????? # """" ## ! #?# # # ###+## | | ???????? # ## | #?# # % | | ????????? % + ## #?# # # ### ## | | ??????????*[# "T" ## #?# ####### #?# #? | | ??????????#%#!%%[ #######?# #?????#######?# #? | | ??????????#*##/########???????# #??############ #? | | ??????????#=! !# #???????# #??# / ## ## | | ??????????#!=% # """ #???????# #??# # | | ??????????#%[= # """ #?#####?# #??# # | | ??????????#[ // """ ### ### #??# """ """ + | | ??????????###### / #??# """ """ # | | ???????????????# % ### #####??# """ """ # | | ???????????????### ####?#####??????# ##### | | ?????????????????###???????????????# = #???? | | ???????????????????????????????????###########???? | | | | | | | | | | | | | | | | | +----------------------------------------------------+ Best States ------------- Heat Dissipation 41 Energy Generation 23 Energy Capacity 250 Matter Stores 300 Matter Capacity 300 Sight Range 18 Terrain Scan Density 10 Armor Coverage 150 Evasion (%) 55 Targeting Accuracy 5 Item Schematics ----------------- None Robot Schematics ------------------ None Fabricated ------------ Nothing Alien Tech Used ----------------- None Achievements -------------- None Challenges ------------ None Game ------ Seed BehemothLightpackStick Manual? 0 Play Time 00:39:47 Cumulative 108.6 hours Start 2023.12.22 @ 18:43:46 End 2023.12.23 @ 13:26:03 Sessions 5 Manual Loads 0 Difficulty Rogue Special Mode None Game No. 94 Rogue 94 Adventurer 0 Explorer 0 Win Type - Total 0 Types 0/0/0/0/0/0/0/0/0 Lore% 35 Gallery% 39 Achievement% 30 Wizard Run 0 Options --------- ASCII 0 Keyboard 0 Movement Arrows Keybinds 0 Fullscreen 1 Font 18/SmallcapsGlow Map View 76x50 Tactical HUD 1 Map Filters NONE Filters NONE Steam 1 RUN: 87cf4de7-678d-4579-a635-b2a35ea47989